bitfinex-derivatives/quotes_SOLF0:USTF0_20251125
["timestamp","ask_amount","ask_price","bid_price","bid_amount"]
[1764071105706,8.70990766,136.51,136.5,0.05226185]
[1764071106810,6.5971,136.47,136.44,65.09]
[1764071107106,2.11480766,136.47,136.42,3.09]
[1764071108007,6.65004728,136.46,136.43,3.13795208]
[1764071108804,0.05244728,136.46,136.43,3.13795208]
[1764071109905,0.05244728,136.46,136.44,62.0]
[1764071110101,0.05244728,136.46,136.43,3.13795208]
[1764071110506,0.05244728,136.46,136.43,0.04795208]
[1764071110805,8.71280766,136.45,136.43,0.04795208]
[1764071115812,6.598,136.45,136.43,3.13795208]
[1764071119417,0.05244728,136.46,136.43,3.13795208]
[1764071120012,6.65014728,136.46,136.43,3.13795208]
[1764071123208,0.05244728,136.46,136.43,3.13795208]
[1764071125120,6.65014728,136.46,136.43,3.13795208]
[1764071130320,6.65014728,136.46,136.43,0.04795208]
[1764071130526,6.598,136.45,136.43,0.04795208]
[1764071135023,0.05244728,136.46,136.43,3.04795208]
[1764071137718,6.65004728,136.46,136.43,3.04795208]
[1764071151734,6.5981,136.45,136.43,3.04795208]
[1764071152131,3.3597807,136.46,136.43,0.04795208]
[1764071152431,6.5985,136.44,136.43,0.04795208]
[1764071153925,6.65044728,136.46,136.43,3.05795208]
[1764071161043,0.05244728,136.46,136.43,3.05795208]
[1764071161936,0.05244728,136.46,136.43,9.65695208]
[1764071162141,0.05244728,136.46,136.44,3.17]
[1764071166834,3.30733342,136.54,136.46,3.17]
[1764071167037,119.04213342,136.57,136.46,3.17]
[1764071167238,11.12464761,136.56,136.46,3.17]
[1764071167439,102.554,136.56,136.49,3.17]
[1764071167938,3.30733342,136.53,136.51,0.05334542]
[1764071168949,6.5946,136.52,136.51,0.05334542]
[1764071171749,6.5941,136.54,136.51,3.22334542]
[1764071172455,6.5932,136.55,136.51,3.22334542]
[1764071173760,6.5937,136.54,136.51,3.22334542]
[1764071176058,3.30733342,136.57,136.51,3.22334542]
[1764071177366,25.04,136.58,136.51,3.22334542]
[1764071177664,3.30733342,136.56,136.51,0.05334542]
[1764071178158,105.86463342,136.56,136.51,0.05334542]
[1764071178958,6.5946,136.52,136.51,0.05334542]
[1764071203191,6.5971,136.47,136.46,84.44014221]
[1764071203387,102.6078,136.49,136.44,2.89]
[1764071203592,102.615,136.48,136.44,2.89]
[1764071203785,6.6,136.41,136.39,43.30404192]
[1764071203986,3.30733342,136.46,136.4,2.89]
[1764071204191,102.6223,136.47,136.4,2.89]
[1764071204490,0.05261116,136.44,136.43,2.89]
[1764071204687,6.65161116,136.44,136.43,2.89]
[1764071209598,0.05261116,136.44,136.43,2.89]
[1764071219503,102.6102,136.49,136.43,2.89]
[1764071219504,6.597,136.48,136.43,2.89]
[1764071220206,6.5971,136.47,136.43,2.89]
[1764071220505,433.52807557,136.55,136.43,2.89]
[1764071220506,109.36558981,136.59,136.46,3.1]
[1764071220704,2.11676896,136.56,136.52,3.1]
[1764071220897,2.11676896,136.56,136.53,0.05015776]
[1764071221104,2.11676896,136.54,136.53,0.05015776]
[1764071222811,6.5932,136.55,136.53,0.05015776]
[1764071223204,6.5932,136.55,136.53,3.15015776]
[1764071224102,6.5932,136.55,136.53,0.05015776]
[1764071228310,6.5932,136.55,136.53,3.15015776]
[1764071228497,6.5925,136.57,136.53,3.15015776]
[1764071228701,2.11676896,136.59,136.53,3.15015776]
[1764071228896,27.15676896,136.61,136.53,5.26692672]
[1764071229106,27.15676896,136.61,136.54,3.1]
[1764071229300,27.15676896,136.61,136.57,3.1]
[1764071230011,6.5911,136.6,136.57,3.1]
[1764071234407,6.5902,136.62,136.57,3.1]
[1764071236709,8.70726896,136.61,136.57,3.1]
[1764071237611,2.11676896,136.61,136.56,21.62501444]
[1764071237810,2.11676896,136.59,136.56,0.04988264]
[1764071238016,2.11676896,136.6,136.56,2.95988264]
[1764071238613,6.5913,136.59,136.56,2.95988264]
[1764071238820,2.11676896,136.6,136.56,0.04988264]
[1764071239017,2.11676896,136.58,136.56,0.04988264]
[1764071239804,8.70866896,136.58,136.56,0.04988264]
[1764071243013,102.5616,136.55,136.49,2.91]
[1764071243323,2.11676896,136.53,136.49,2.91]
[1764071244020,6.5947,136.52,136.49,2.91]
[1764071244423,6.64610077,136.52,136.49,2.95967567]
[1764071248226,6.5952,136.51,136.49,2.95967567]
[1764071250621,6.64610077,136.52,136.49,2.95967567]
[1764071251529,2.11676896,136.5,136.49,0.04967567]
[1764071251723,2.11676896,136.5,136.45,2.91]
[1764071252124,6.5967,136.48,136.43,2.91]
[1764071252321,2.11676896,136.48,136.43,2.91]
[1764071252822,6.5976,136.46,136.43,2.91]
[1764071253023,6.5976,136.46,136.44,0.05477543]
[1764071253621,6.5976,136.46,136.44,2.96477543]
[1764071255622,6.5976,136.46,136.44,0.05477543]
[1764071257029,6.5976,136.46,136.44,2.96477543]
[1764071260231,0.04813183,136.47,136.44,2.96477543]
[1764071260727,0.04813183,136.47,136.45,2.91]
[1764071270341,0.04813183,136.47,136.46,3.07]
[1764071272041,0.04813183,136.47,136.45,3.07]
[1764071272342,0.04813183,136.47,136.44,0.05477543]
[1764071272536,0.04813183,136.47,136.44,3.12477543]
[1764071273241,6.64523183,136.47,136.44,3.12477543]
[1764071276950,0.04813183,136.47,136.44,3.12477543]
[1764071277942,0.04813183,136.47,136.45,3.0]
[1764071279148,0.04813183,136.47,136.46,3.0]
[1764071280549,105.8695413,136.55,136.47,3.0]
[1764071281149,3.3052413,136.55,136.47,3.0]
[1764071281450,0.04693699,136.52,136.5,3.05516898]
[1764071282551,3.3052413,136.59,136.5,3.05516898]
[1764071282844,3.3052413,136.59,136.5,3.0]
[1764071283053,6.5923,136.57,136.51,3.0]
[1764071283445,6.5923,136.57,136.53,0.04875585]
[1764071283846,6.5923,136.57,136.53,3.04875585]
[1764071286145,6.5928,136.56,136.53,3.04875585]
[1764071288252,6.5928,136.56,136.53,0.04875585]
[1764071289148,6.5928,136.56,136.53,3.04875585]
[1764071290347,6.5933,136.55,136.53,3.04875585]
[1764071294148,6.5927,136.57,136.53,3.04875585]
[1764071294642,6.5927,136.57,136.55,3.0]
[1764071295759,6.5927,136.56,136.55,3.0]
[1764071301162,6.5927,136.56,136.54,0.04900593]
[1764071301363,6.5932,136.55,136.54,0.04900593]
[1764071312986,102.572,136.54,136.45,3.06]
[1764071313178,105.8898413,136.52,136.45,3.06]
[1764071313683,6.5961,136.49,136.45,3.06]
[1764071314084,0.04632126,136.48,136.46,0.04752614]
[1764071314280,0.04632126,136.48,136.46,3.10752614]
[1764071314483,0.04632126,136.48,136.46,65.10752614]
[1764071316488,6.64292126,136.48,136.46,65.10752614]
[1764071321388,0.04632126,136.48,136.46,65.10752614]
[1764071321595,0.04632126,136.48,136.47,3.06]
[1764071327299,6.64292126,136.48,136.47,3.06]
[1764071334196,0.04632126,136.48,136.47,3.06]
[1764071338606,0.04632126,136.48,136.47,65.06]
[1764071339793,0.04632126,136.48,136.47,3.06]
[1764071341210,6.5955,136.51,136.47,3.06]
[1764071341409,102.5351,136.59,136.49,2.94]
[1764071341410,2.11533827,136.56,136.49,2.94]
[1764071342509,2.11533827,136.56,136.48,2.11533827]
[1764071342510,2.11533827,136.56,136.52,2.94]
[1764071343014,6.5937,136.54,136.52,2.94]
[1764071343404,2.11533827,136.56,136.52,2.94]
[1764071343704,6.594,136.54,136.52,2.94]
[1764071344702,6.5942,136.53,136.52,2.94]
[1764071346707,6.5937,136.54,136.52,2.94]
[1764071347503,8.70843827,136.56,136.52,2.94]
[1764071347914,25.04,136.58,136.53,2.94]
[1764071348117,6.5922,136.57,136.55,2.94]
[1764071348611,6.5922,136.57,136.54,2.99276584]
[1764071352620,6.5927,136.56,136.54,2.99276584]
[1764071353217,6.5932,136.55,136.54,0.05276584]
[1764071362727,6.5932,136.55,136.54,3.12276584]
[1764071363118,25.04,136.58,136.54,3.12276584]
[1764071363324,102.519,136.61,136.54,3.12276584]
[1764071363726,6.5929,136.56,136.54,3.12276584]
[1764071366015,6.5932,136.55,136.54,0.05276584]
[1764071382740,8.70853827,136.55,136.54,0.05276584]
[1764071392546,6.5932,136.55,136.54,0.05276584]
[1764071402458,102.535,136.59,136.54,2.98276584]
[1764071403150,6.5927,136.56,136.54,2.98276584]
[1764071407251,6.5927,136.56,136.54,0.05276584]
[1764071407657,31.6127,136.56,136.54,0.05276584]
[1764071407962,6.5951,136.52,136.5,22.51812787]
[1764071408161,6.5951,136.52,136.49,2.93]
[1764071408462,102.5656,136.55,136.49,2.93]
[1764071408871,0.05055796,136.53,136.51,0.04870261]
[1764071410171,6.595,136.52,136.51,0.04870261]
[1764071410869,0.05055796,136.53,136.51,2.97870261]
[1764071412067,6.64475796,136.53,136.51,2.97870261]
[1764071412274,0.05055796,136.53,136.51,2.97870261]
[1764071414065,0.05055796,136.53,136.52,2.93]
[1764071415773,102.5129,136.62,136.52,4.39]
[1764071415971,127.5329,136.62,136.52,2.93]
[1764071416175,25.02,136.62,136.54,2.93]
[1764071416563,102.479,136.66,136.57,0.05033617]
[1764071416767,127.499,136.66,136.58,2.93]
[1764071416969,127.499,136.66,136.6,0.04777255]
[1764071417171,127.499,136.66,136.6,3.11777255]
[1764071418073,6.5894,136.63,136.6,3.11777255]
[1764071418574,6.5899,136.62,136.6,3.11777255]
[1764071418772,6.5899,136.62,136.6,0.04777255]
[1764071419865,6.5899,136.62,136.6,3.11777255]
[1764071420468,127.499,136.66,136.6,3.11777255]
[1764071421177,6.5899,136.62,136.6,3.11777255]
[1764071421981,6.5899,136.62,136.6,0.04777255]
[1764071431177,6.5903,136.61,136.6,0.04777255]
[1764071435479,6.5903,136.61,136.6,3.11777255]
[1764071437470,6.5903,136.61,136.6,0.04777255]
[1764071453101,6.5903,136.61,136.6,3.01777255]
[1764071453285,6.5898,136.62,136.6,3.01777255]
[1764071453485,27.1123332,136.65,136.6,3.01777255]
[1764071453889,6.59,136.62,136.6,3.01777255]
[1764071456188,27.1123332,136.65,136.6,3.01777255]
[1764071456189,6.5893,136.64,136.6,3.01777255]
[1764071456602,6.5893,136.64,136.61,2.97]
[1764071456796,31.5888,136.65,136.61,2.97]
[1764071457299,6.5888,136.65,136.61,2.97]
[1764071457495,6.589,136.64,136.61,2.97]
[1764071457796,104.5878332,136.67,136.61,2.97]
[1764071459203,6.5894,136.63,136.61,2.97]
[1764071460012,6.5889,136.64,136.61,2.97]
[1764071460401,2.1123332,136.67,136.61,2.97]
[1764071460597,129.5727332,136.69,136.61,2.97]
[1764071460800,129.5727332,136.69,136.64,2.96169386]
[1764071460998,25.0,136.69,136.64,2.96169386]
[1764071461301,6.587,136.68,136.64,2.96169386]
[1764071461504,25.0,136.69,136.64,2.96169386]
[1764071462307,25.0,136.69,136.64,0.05169386]
[1764071462308,104.5791332,136.68,136.64,0.05169386]
[1764071462505,2.1123332,136.66,136.64,0.05169386]
[1764071463006,127.4865,136.65,136.58,2.91]
[1764071463209,2.1123332,136.62,136.57,2.91]
[1764071464006,6.5908,136.6,136.58,0.05576417]
[1764071465101,8.7031332,136.6,136.58,0.05576417]
[1764071465610,6.5932,136.55,136.51,2.91]
[1764071466303,6.5938,136.54,136.51,2.91]
[1764071466809,6.64662639,136.54,136.51,2.96151632]
[1764071467002,104.6401332,136.6,136.52,2.91]
[1764071467403,102.532,136.59,136.52,2.91]
[1764071467701,6.5928,136.56,136.52,2.91]
[1764071468103,0.05219889,136.55,136.54,2.91]
[1764071478620,6.64539889,136.55,136.54,3.2]
[1764071479417,0.05219889,136.55,136.54,3.2]
[1764071483021,6.64539889,136.55,136.54,3.2]
[1764071483522,6.64539889,136.55,136.53,62.05380428]
[1764071484026,6.5937,136.54,136.53,0.05380428]
[1764071484223,6.5937,136.54,136.53,3.25380428]
[1764071485918,6.5937,136.54,136.53,0.05380428]
[1764071486119,8.7060332,136.54,136.53,0.05380428]
[1764071494727,102.593,136.51,136.48,7e-05]
[1764071494933,2.1123332,136.49,136.48,7e-05]
[1764071495125,8.7084332,136.49,136.48,7e-05]
[1764071495832,8.7084332,136.49,136.47,0.05268273]
[1764071496022,102.6368,136.45,136.39,3.2]
[1764071496329,2.1123332,136.43,136.38,3.2]
[1764071496629,6.6004,136.41,136.38,3.2]
[1764071497018,6.65322251,136.41,136.38,3.24857721]
[1764071497222,2.1123332,136.39,136.38,0.04857721]
[1764071497422,6.6006,136.4,136.38,0.04857721]
[1764071497423,6.6006,136.4,136.38,3.24857721]
[1764071498231,6.6006,136.4,136.38,0.04857721]
[1764071500832,6.6006,136.4,136.38,3.24857721]
[1764071501232,6.6006,136.4,136.38,0.04857721]
[1764071502032,31.6406,136.4,136.38,0.04857721]
[1764071503223,6.6006,136.4,136.38,0.04857721]
[1764071506630,6.6006,136.4,136.38,3.24857721]
[1764071508936,0.05282251,136.41,136.38,3.24857721]
[1764071509526,6.65292251,136.41,136.38,3.24857721]
[1764071513243,6.6006,136.4,136.38,3.24857721]
[1764071518945,6.6009,136.39,136.38,3.24857721]
[1764071519842,6.6004,136.4,136.38,3.24857721]
[1764071523450,0.05282251,136.41,136.38,3.24857721]
[1764071524140,102.6104,136.49,136.38,6.55723538]
[1764071524339,102.5949,136.51,136.39,3.08]
[1764071524541,6.5971,136.47,136.42,3.08]
[1764071524747,102.5949,136.51,136.43,3.08]
[1764071525249,0.04651539,136.48,136.46,0.05096821]
[1764071525448,0.04651539,136.48,136.46,3.13096821]
[1764071526447,0.04651539,136.48,136.46,0.05096821]
[1764071528150,6.64311539,136.48,136.46,0.05096821]
[1764071530449,6.64311539,136.48,136.46,3.13096821]
[1764071532054,0.04651539,136.48,136.46,3.13096821]
[1764071532248,25.04,136.52,136.46,3.13096821]
[1764071532647,6.5941,136.54,136.48,3.08]
[1764071533146,25.06,136.56,136.49,3.08]
[1764071533346,0.05277642,136.52,136.51,3.08]
[1764071533544,6.64421016,136.53,136.5,0.05648128]
[1764071533748,0.04981016,136.53,136.5,0.05648128]
[1764071534252,6.5948,136.52,136.5,0.05648128]
[1764071534852,9.90345817,136.52,136.5,0.05648128]
[1764071537053,34.96345817,136.52,136.5,0.05648128]
[1764071540058,31.6548,136.52,136.5,0.05648128]
[1764071540755,31.6548,136.52,136.5,3.15648128]
[1764071540961,6.5948,136.52,136.5,3.15648128]
[1764071541453,0.04981016,136.53,136.5,3.15648128]
[1764071542058,6.64401016,136.53,136.5,3.15648128]
[1764071542247,0.04981016,136.53,136.5,3.15648128]
[1764071546459,0.04981016,136.53,136.5,0.05648128]
[1764071546962,6.5947,136.52,136.5,3.15648128]
[1764071547463,0.04981016,136.53,136.5,3.15648128]
[1764071547964,6.64401016,136.53,136.5,3.15648128]
[1764071549565,0.04981016,136.53,136.5,3.15648128]
[1764071550266,6.64401016,136.53,136.5,3.15648128]
[1764071551163,6.5947,136.52,136.5,3.15648128]
[1764071551364,6.5947,136.52,136.5,0.05648128]
[1764071554172,6.5951,136.51,136.5,0.05648128]
[1764071560973,6.5951,136.51,136.44,62.0]
[1764071560974,102.6037,136.5,136.44,62.0]
[1764071561272,3.30865817,136.45,136.39,3.1]
[1764071561471,6.5993,136.43,136.39,3.1]
[1764071561679,105.93035817,136.47,136.39,3.1]
[1764071562072,0.05133663,136.44,136.42,0.05589834]
[1764071563180,6.64993663,136.44,136.42,0.05589834]
[1764071564568,9.9585948,136.44,136.42,0.05589834]
[1764071574593,2.11800552,136.43,136.42,0.05589834]
[1764071575087,8.71700552,136.43,136.42,0.05589834]
[1764071576087,6.599,136.43,136.42,0.05589834]
[1764071576276,8.71700552,136.43,136.42,0.05589834]
[1764071577482,6.599,136.43,136.42,3.22589834]
[1764071577686,6.599,136.43,136.42,0.05589834]
[1764071577983,102.6756,136.4,136.34,3.21]
[1764071578182,2.11800552,136.38,136.34,3.21]
[1764071578984,0.04823402,136.37,136.35,3.26218395]
[1764071579286,6.6024,136.36,136.35,3.26218395]
[1764071580186,0.04823402,136.37,136.35,3.26218395]
[1764071580894,0.04823402,136.37,136.35,65.26218395]
[1764071581195,6.65023402,136.37,136.35,3.26218395]
[1764071582195,0.04823402,136.37,136.35,3.26218395]
[1764071582392,0.04823402,136.37,136.36,3.21]
[1764071582691,6.65023402,136.37,136.35,3.26218395]
[1764071582895,6.65023402,136.37,136.35,0.05218395]
[1764071584102,6.65023402,136.37,136.35,3.26218395]
[1764071587500,0.04823402,136.37,136.35,3.26218395]
[1764071595614,6.65013402,136.37,136.35,3.26218395]
[1764071596217,0.04823402,136.37,136.35,3.26218395]
[1764071597509,2.11800552,136.42,136.36,3.0]
[1764071597899,6.6009,136.39,136.36,3.0]
[1764071598508,6.65674055,136.39,136.36,3.0]
[1764071600604,0.05584055,136.39,136.36,3.0]
[1764071602812,0.05584055,136.39,136.37,3.0]
[1764071605819,0.05584055,136.39,136.38,3.0]
[1764071606114,104.74950552,136.46,136.38,3.0]
[1764071607118,6.65340605,136.43,136.41,3.05502587]
[1764071607313,0.05440605,136.43,136.41,3.05502587]
[1764071608920,6.65350605,136.43,136.41,3.05502587]
[1764071609616,6.5995,136.42,136.41,3.05502587]
[1764071610214,6.5995,136.42,136.41,0.05502587]
[1764071621536,0.05440605,136.43,136.41,3.05502587]
[1764071628944,6.65350605,136.43,136.41,3.05502587]
[1764071630746,6.5995,136.42,136.41,3.05502587]
[1764071631644,6.5995,136.42,136.41,0.05502587]
[1764071634945,6.5995,136.42,136.41,3.09502587]
[1764071640149,6.5995,136.42,136.41,0.05502587]
[1764071640349,6.6009,136.39,136.38,21.99134767]
[1764071640550,6.6009,136.39,136.38,3.0]
[1764071645249,6.6009,136.39,136.38,25.38011437]
[1764071651859,6.6009,136.39,136.38,22.38011437]
[1764071652057,6.6014,136.38,136.37,0.05133837]
[1764071652852,6.6014,136.38,136.37,3.05133837]
[1764071660069,0.05093212,136.4,136.37,3.05133837]
[1764071660070,6.601,136.39,136.37,3.05133837]
[1764071660968,6.601,136.39,136.37,0.05133837]
[1764071661161,6.601,136.39,136.37,3.13133837]
[1764071665371,6.6014,136.38,136.37,3.13133837]
[1764071669379,6.6009,136.39,136.37,3.13133837]
[1764071673681,6.65143212,136.4,136.37,3.13133837]
[1764071675379,6.601,136.39,136.37,3.13133837]
[1764071677889,0.05093212,136.4,136.37,3.13133837]
[1764071678787,6.65143212,136.4,136.37,3.13133837]
[1764071679488,0.05093212,136.4,136.37,3.13133837]
[1764071679684,6.6009,136.39,136.37,3.13133837]
[1764071679887,3.30896749,136.39,136.37,0.05133837]
[1764071680394,6.6014,136.38,136.37,0.05133837]
[1764071689399,6.6014,136.38,136.37,0.00133837]
[1764071689697,102.7195,136.34,136.28,3.14]
[1764071690701,0.04703871,136.32,136.3,0.05543954]
[1764071691198,6.605,136.31,136.3,0.05543954]
[1764071691403,6.605,136.31,136.3,3.19543954]
[1764071691699,0.04703871,136.32,136.3,3.19543954]
[1764071693701,0.04703871,136.32,136.31,65.14]
[1764071696405,0.04703871,136.32,136.31,3.14]
[1764071697508,0.04703871,136.32,136.3,0.05543954]
[1764071697700,0.04703871,136.32,136.3,3.19543954]
[1764071699509,0.04703871,136.32,136.31,65.03]
[1764071699700,0.04703871,136.32,136.31,3.03]
[1764071700202,2.16742704,136.32,136.3,0.05543954]
[1764071701105,102.746,136.31,136.25,22.13352898]
[1764071701303,2.12038833,136.29,136.25,3.03]
[1764071701511,2.12038833,136.3,136.25,3.03]
[1764071702119,0.05008178,136.29,136.26,3.07640766]
[1764071702322,6.6067,136.27,136.26,3.07640766]
[1764071706523,6.6067,136.27,136.26,0.04640766]
[1764071707110,8.72708833,136.27,136.26,0.04640766]
[1764071708621,2.12038833,136.27,136.22,22.48513761]
[1764071708822,6.6084,136.24,136.2,3.03]
[1764071709718,0.04927067,136.23,136.21,3.08026104]
[1764071710419,6.65797067,136.23,136.21,0.05026104]
[1764071711615,6.65797067,136.23,136.17,22.57105088]
[1764071711616,2.169659,136.23,136.17,22.57105088]
[1764071711821,2.169659,136.23,136.15,3.03]
[1764071711822,2.12038833,136.2,136.15,3.03]
[1764071712318,25.06,136.23,136.15,3.03]
[1764071712523,27.18038833,136.23,136.15,3.03]
[1764071712720,0.04799248,136.2,136.18,3.08204353]
[1764071714033,0.04799248,136.2,136.18,0.05204353]
[1764071715624,6.65829248,136.2,136.18,0.05204353]
[1764071719524,2.12038833,136.19,136.18,0.05204353]
[1764071723738,8.73098833,136.19,136.18,0.05204353]
[1764071726738,6.6135,136.14,136.12,3.02]
[1764071726938,2.12038833,136.16,136.12,3.02]
[1764071727738,6.6135,136.13,136.12,3.02]
[1764071728334,6.614,136.12,136.11,3.07480493]
[1764071729439,6.6153,136.1,136.07,3.02]
[1764071730548,6.66722224,136.1,136.07,3.07097705]
[1764071731045,25.08,136.14,136.09,5.14038833]
[1764071731248,25.08,136.14,136.1,3.02]
[1764071731444,2.12038833,136.16,136.1,3.02]
[1764071732136,0.04853333,136.14,136.13,3.02]
[1764071732344,0.04734535,136.15,136.13,3.02]
[1764071732546,0.04734535,136.15,136.14,3.02]
[1764071732950,2.12038833,136.21,136.15,3.02]
[1764071733152,6.6107,136.19,136.15,3.02]
[1764071733846,0.04869455,136.18,136.17,3.02]
[1764071734252,6.65999455,136.18,136.16,3.06700802]
[1764071735248,0.04869455,136.18,136.16,3.06700802]
[1764071736050,0.04869455,136.18,136.16,0.04700802]
[1764071736249,2.12038833,136.17,136.16,0.04700802]
[1764071738052,6.65989455,136.18,136.16,0.04700802]
[1764071738446,0.04869455,136.18,136.16,3.06700802]
[1764071739352,0.04869455,136.18,136.17,3.02]
[1764071739661,31.7091,136.23,136.17,3.02]
[1764071739853,6.6091,136.23,136.17,3.02]
[1764071740456,6.6092,136.22,136.17,3.02]
[1764071740658,0.04728218,136.21,136.19,3.02]
[1764071740956,6.6101,136.2,136.18,0.0500221]
[1764071741146,104.94758833,136.2,136.13,65.02]
[1764071741455,2.12038833,136.18,136.13,3.02]
[1764071741961,6.6126,136.15,136.13,3.02]
[1764071742157,6.6126,136.15,136.13,0.05361038]
[1764071742158,2.12038833,136.14,136.13,0.05361038]
[1764071742553,102.91416418,136.15,136.13,0.05361038]
[1764071743162,6.613,136.14,136.13,0.05361038]
[1764071748761,6.613,136.14,136.13,2.97361038]
[1764071749860,0.05006418,136.15,136.13,2.97361038]
[1764071751056,6.66266418,136.15,136.13,2.97361038]
[1764071754466,0.05006418,136.15,136.13,2.97361038]
[1764071755367,6.66266418,136.15,136.13,2.97361038]
[1764071760157,0.05006418,136.15,136.13,2.97361038]
[1764071760473,25.14,136.21,136.14,2.89]
[1764071760663,102.7981,136.24,136.14,2.89]
[1764071761262,0.05623656,136.2,136.18,2.93757437]
[1764071763567,0.05623656,136.2,136.19,64.89]
[1764071763769,0.05623656,136.2,136.19,2.89]
[1764071764767,102.7826,136.26,136.19,2.89]
[1764071765170,3.3183591,136.24,136.19,2.89]
[1764071765374,106.1161591,136.24,136.19,2.89]
[1764071765570,3.3183591,136.24,136.19,2.89]
[1764071765775,6.6097,136.21,136.2,0.05240867]
[1764071767582,0.04660914,136.23,136.2,0.05240867]
[1764071767583,0.04660914,136.23,136.2,2.94240867]
[1764071769070,6.65540914,136.23,136.2,2.94240867]
[1764071770777,0.04660914,136.23,136.2,2.94240867]
[1764071772577,0.04660914,136.23,136.2,9.55230867]
[1764071772779,0.04660914,136.23,136.21,2.89]
[1764071775986,25.14,136.29,136.22,2.89]
[1764071776378,6.6069,136.27,136.22,2.89]
[1764071777088,6.65978754,136.26,136.24,2.89]
[1764071778493,0.05248754,136.26,136.24,2.89]
[1764071781302,0.05248754,136.26,136.23,2.94632842]
[1764071781702,0.05248754,136.26,136.23,25.23439711]
[1764071781893,0.05248754,136.26,136.23,2.94632842]
[1764071782093,6.6077,136.25,136.23,2.94632842]
[1764071782599,0.05248754,136.26,136.23,2.94632842]
[1764071783097,6.65968754,136.26,136.23,2.94632842]
[1764071788802,0.05248754,136.26,136.23,9.55492842]
[1764071788999,0.05248754,136.26,136.24,2.89]
[1764071791897,0.05248754,136.26,136.24,9.4981]
[1764071792104,0.05248754,136.26,136.24,2.89]
[1764071793191,0.05248754,136.26,136.25,2.89]
[1764071797404,6.6058,136.29,136.26,2.89]
[1764071798105,6.6053,136.3,136.27,2.89]
[1764071798609,6.65240885,136.3,136.27,2.93910056]
[1764071800709,6.6058,136.29,136.27,2.93910056]
[1764071804009,0.04710885,136.3,136.27,2.93910056]
[1764071805013,6.65240885,136.3,136.27,2.93910056]
[1764071808911,6.6058,136.29,136.27,2.93910056]
[1764071809117,0.04710885,136.3,136.27,2.93910056]
[1764071809313,6.65250885,136.3,136.27,2.93910056]
[1764071812117,102.7651,136.28,136.22,22.0127725]
[1764071812316,106.07679247,136.29,136.2,3.08]
[1764071812317,3.31669247,136.26,136.2,3.08]
[1764071812911,6.6082,136.25,136.2,3.08]
[1764071813113,0.05246383,136.24,136.22,3.08]
[1764071818426,6.66066383,136.24,136.22,3.08]
[1764071820124,8.73238204,136.23,136.21,0.05189111]
[1764071820328,8.73238204,136.23,136.21,3.07189111]
[1764071823023,109.50616516,136.32,136.23,3.02]
[1764071823225,2.12368204,136.29,136.23,3.02]
[1764071824126,0.04753466,136.27,136.25,3.06921288]
[1764071825622,0.04753466,136.27,136.25,0.04921288]
[1764071826127,6.65433466,136.27,136.25,3.06921288]
[1764071828227,0.04753466,136.27,136.25,3.06921288]
[1764071835130,0.04753466,136.27,136.26,3.02]
[1764071836926,6.6048,136.31,136.27,3.02]
[1764071837830,0.04941732,136.3,136.27,3.02]
[1764071838135,0.04941732,136.3,136.28,2.93]
[1764071839035,6.65471732,136.3,136.28,2.93]
[1764071845026,6.6058,136.29,136.28,2.93]
[1764071846831,6.6063,136.28,136.27,25.07117991]
[1764071847035,6.6063,136.28,136.27,2.93]
[1764071851235,6.65501732,136.3,136.27,2.93]
[1764071853432,2.12368204,136.29,136.25,0.04921288]
[1764071853642,2.12368204,136.29,136.25,2.97921288]
[1764071855042,6.6063,136.28,136.25,2.97921288]
[1764071863836,2.12368204,136.29,136.25,0.04921288]
[1764071864042,2.12368204,136.27,136.25,0.04921288]
[1764071864540,6.6072,136.26,136.25,0.04921288]
[1764071869655,6.6072,136.26,136.25,3.08921288]
[1764071871955,6.65307387,136.27,136.25,3.08921288]
[1764071872853,0.04637387,136.27,136.25,3.08921288]
[1764071873255,2.17005591,136.27,136.25,0.04921288]
[1764071875045,6.6072,136.26,136.25,0.04921288]
[1764071885969,6.6072,136.26,136.25,2.97921288]
[1764071887761,0.04637387,136.27,136.25,2.97921288]
[1764071898270,0.04637387,136.27,136.26,3.07]